fUSD/lending_fUSD_20260405
["ID","MTS","AMOUNT","RATE_DAILY","PERIOD"]
[419767856,1775367059612,-1016.63,0.00015999,2]
[419767857,1775367059623,-1016.63,0.00015999,2]
[419767858,1775367059635,-1016.63,0.00015999,2]
[419767859,1775367059644,-1016.63,0.00015999,2]
[419767860,1775367059655,-1016.63,0.00015999,2]
[419767861,1775367059665,-1016.63,0.00015999,2]
[419767862,1775367059676,-1016.63,0.00015999,2]
[419767863,1775367059685,-1016.76993221,0.00015999,2]
[419767864,1775367059695,-500.0,0.00015999,2]
[419767865,1775367059704,-500.0,0.00015999,2]
[419767866,1775367059713,-500.0,0.00015999,2]
[419767867,1775367059723,-500.0,0.00015999,2]
[419767868,1775367059732,-500.0,0.00015999,2]
[419767869,1775367059742,-500.0,0.00015999,2]
[419767870,1775367059751,-500.0,0.00015999,2]
[419767871,1775367059760,-500.0,0.00015999,2]
[419767872,1775367059770,-500.0,0.00015999,2]
[419767873,1775367059780,-500.0,0.00015999,2]
[419767874,1775367059790,-289.92,0.00015999,2]
[419767875,1775367059800,-500.0,0.00015999,2]
[419767876,1775367059809,-154.47,0.00015999,2]
[419767877,1775367059820,-439.78,0.00015999,2]
[419767878,1775367059830,-500.0,0.00015999,2]
[419767879,1775367059842,-500.0,0.00015999,2]
[419767880,1775367059853,-500.0,0.00015999,2]
[419767881,1775367059863,-500.0,0.00015999,2]
[419767882,1775367059872,-500.0,0.00015999,2]
[419767883,1775367059882,-500.0,0.00015999,2]
[419767884,1775367059892,-500.0,0.00015999,2]
[419767885,1775367059903,-500.0,0.00015999,2]
[419767886,1775367059912,-500.0,0.00015999,2]
[419767887,1775367059923,-500.0,0.00015999,2]
[419767888,1775367059933,-302.34,0.00015999,2]
[419767889,1775367059943,-500.0,0.00015999,2]
[419767890,1775367059953,-500.0,0.00015999,2]
[419767891,1775367059963,-637.86278756,0.00015999,2]
[419767892,1775367059973,-153.46464446,0.00016,2]
[419767893,1775367059983,-214.21185671,0.00016,2]
[419767894,1775367059992,-245.0843554,0.00016,2]
[419767895,1775367060002,-151.90807937,0.00016,2]
[419767896,1775367060012,-151.22967101,0.00016,2]
[419767897,1775367060023,-150.0,0.00016,2]
[419767898,1775367060036,-275.015911,0.00016,2]
[419767899,1775367060046,-150.60277619,0.00016,2]
[419767900,1775367060057,-154.07899059,0.00016,2]
[419767901,1775367060067,-151.75828689,0.00016,2]
[419767902,1775367060078,-287.38140471,0.00016,2]
[419767903,1775367060088,-154.24536522,0.00016,2]
[419767904,1775367060097,-1297410.26113771,0.00016,2]
[419767905,1775367060107,-45709.55949389,0.00016,2]
[419767906,1775367060117,-98963.22229137,0.00016,2]
[419767907,1775367063955,-927.53065969,0.000159,2]
[419767908,1775367064255,-1401.5544,0.00012656,2]
[419767909,1775367064296,-457.98682159,0.00012656,2]
[419767910,1775367064307,-31025.36040567,0.00012656,2]
[419767911,1775367064318,-1000.0,0.00013839,2]
[419767912,1775367064328,-27264.6129749,0.000159,2]
[419767913,1775367064338,-399439.13391943,0.00016,2]
[419767931,1775367540505,-250.0,0.00010539,2]
[419767932,1775367540529,-1030.18,0.00010695,2]
[419767933,1775367540553,-300.0,0.000107,3]
[419767934,1775367540576,-500.0,0.000107,3]
[419767935,1775367540599,-1000.0,0.000107,3]
[419767936,1775367540622,-1200.0,0.00010799,2]
[419767937,1775367540645,-600.0,0.000108,3]
[419767938,1775367540667,-1000.0,0.000108,3]
[419767939,1775367540691,-2000.0,0.000108,3]
[419767940,1775367540714,-900.0,0.000109,3]
[419767941,1775367540737,-1500.0,0.000109,3]
[419767942,1775367540760,-3000.0,0.000109,3]
[419767943,1775367540783,-1724.82,0.000109,5]
[419767944,1775367703028,1691.19,5.269e-05,2]
[419767945,1775367703222,1691.19,5.547e-05,2]
[419767946,1775367703419,1691.19,5.824e-05,2]
[419767947,1775367703613,1691.19,6.101e-05,2]
[419767948,1775367703807,1691.19,6.379e-05,2]
[419767949,1775367704000,1544.06,6.656e-05,2]
[419767950,1775367704025,147.13,6.656e-05,2]
[419767951,1775367704189,1691.19,6.933e-05,2]
[419767952,1775367704390,1691.19,7.211e-05,2]
[419767953,1775367704806,1691.19,7.488e-05,2]
[419767954,1775367705003,1691.19,7.765e-05,2]
[419767955,1775367705321,1691.19,8.043e-05,2]
[419767956,1775367705513,1396.93,8.32e-05,2]
[419767957,1775367705537,294.26,8.32e-05,2]
[419767958,1775367705707,1691.19,8.597e-05,2]
[419767959,1775367705906,1691.19,8.875e-05,2]
[419767960,1775367706104,1691.19,9.152e-05,2]
[419767961,1775367706297,1691.19,9.429e-05,2]
[419767962,1775367706502,1691.19,9.707e-05,2]
[419767966,1775368199645,-296.59439676,9.925e-05,2]
[419767967,1775368199670,-293.0,9.925e-05,2]
[419767968,1775368199694,-1691.19,9.984e-05,2]
[419767969,1775368199718,-2740.37,0.00010025,2]
[419767970,1775368199740,-10864.17,0.00010026,2]
[419767971,1775368199765,-1691.19,0.00010261,2]
[419767972,1775368199788,-296.59439674,0.00010404,2]
[419767973,1775368199811,-1691.19,0.00010539,2]
[419767974,1775368199835,-1500.0,0.00010573,2]
[419767975,1775368199857,-200.0,0.00010577,2]
[419767976,1775368199879,-1837.68,0.00010591,2]
[419767977,1775368199902,-1500.0,0.000106,3]
[419767978,1775368199925,-3808.0,0.000106,5]
[419767979,1775368199950,-1200.0,0.00010652,2]
[419767980,1775368199974,-458.76,0.00010653,2]
[419767981,1775368199997,-3100.0,0.000107,3]
[419767982,1775368200021,-769.0,0.00010747,2]
[419767983,1775368200045,-1017.0,0.00010755,2]
[419767984,1775368200070,-153.02756354,0.00010761,2]
[419767985,1775368200093,-277.0,0.00010769,2]
[419767986,1775368200116,-1447.0,0.00010777,2]
[419767987,1775368200139,-1165.0,0.0001079,2]
[419767988,1775368200163,-1404.0,0.00010798,2]
[419767989,1775368200186,-4600.0,0.000108,3]
[419767990,1775368200211,-614687.23364296,0.000108,2]
[419767997,1775368233116,-300.0,0.00010025,2]
[419767998,1775368233126,-1200.0,0.00010025,2]
[419767999,1775368233135,-5935.56025729,0.00010026,2]
[419768000,1775368233145,-501.03587191,0.00010773,2]
[419768001,1775368233154,-504.16046887,0.00010773,2]
[419768002,1775368233164,-500.0,0.00010773,2]
[419768003,1775368233173,-500.0,0.00010773,2]
[419768004,1775368233182,-504.05506813,0.00010773,2]
[419768005,1775368233192,-500.0,0.00010773,2]
[419768006,1775368233202,-500.37556055,0.00010773,2]
[419768007,1775368233211,-500.0,0.00010773,2]
[419768008,1775368233220,-381.14774159,0.00010773,2]
[419768009,1775368233234,-500.0,0.00010773,2]
[419768010,1775368233244,-500.0,0.00010773,2]
[419768011,1775368233254,-500.99644893,0.00010773,2]
[419768012,1775368233264,-167553.77591821,0.000108,2]
[419768013,1775368233277,-45513.88602971,0.000108,2]
[419768014,1775368233288,-22250.39798091,0.000108,2]
[419768016,1775368237982,-1294.37600317,0.000108,2]
[419768017,1775368237994,-357.39631745,0.000108,2]
[419768018,1775368238008,-1086.8797393,0.000108,2]
[419768019,1775368238020,-81680.44806829,0.000108,2]
[419768020,1775368238031,-1000.0,0.00010804,2]
[419768021,1775368238044,-7127.93,0.00010805,2]
[419768022,1775368238054,-1331.0,0.0001082,2]
[419768023,1775368238064,-2000.0,0.00010847,2]
[419768024,1775368238074,-296.59439674,0.00010882,2]
[419768025,1775368238083,-6200.0,0.000109,3]
[419768026,1775368238093,-1603.7,0.00010955,2]
[419768027,1775368238102,-150.0,0.00010982,2]
[419768028,1775368238112,-250.0,0.00010982,2]
[419768029,1775368238122,-600.0,0.00010983,2]
[419768030,1775368238131,-193.0,0.00010983,2]
[419768031,1775368238141,-250.0,0.00010983,2]
[419768032,1775368238153,-5000.0,0.00010983,2]
[419768033,1775368238164,-250.0,0.00010983,2]
[419768034,1775368238174,-420.0,0.00011027,2]
[419768035,1775368238184,-1680.0,0.00011028,2]
[419768036,1775368238195,-7238.669,0.00011075,2]
[419768037,1775368238205,-354.52,0.00011075,2]
[419768038,1775368238215,-27658.22163942,0.00011076,2]
[419768039,1775368238225,-458.76,0.00011244,2]
[419768040,1775368238236,-153.40766799,0.000113,2]
[419768041,1775368238247,-200.0,0.0001131,2]
[419768042,1775368238256,-502.00598187,0.0001131,2]
[419768043,1775368238267,-151.0,0.0001131,2]
[419768044,1775368238276,-151.0,0.0001131,2]
[419768045,1775368238285,-151.0,0.0001131,2]
[419768046,1775368238295,-151.0,0.0001131,2]
[419768047,1775368238305,-151.0,0.0001131,2]
[419768048,1775368238315,-151.0,0.0001131,2]
[419768049,1775368238324,-151.0,0.0001131,2]
[419768050,1775368238335,-151.0,0.0001131,2]
[419768051,1775368238345,-151.0,0.0001131,2]
[419768052,1775368238354,-1386.78395259,0.0001131,2]
[419768053,1775368238364,-151.0,0.0001131,2]
[419768054,1775368238373,-151.0,0.0001131,2]
[419768055,1775368238382,-151.0,0.0001131,2]
[419768056,1775368238392,-151.0,0.0001131,2]
[419768057,1775368238401,-151.0,0.0001131,2]
[419768058,1775368238411,-151.0,0.0001131,2]
[419768060,1775368238421,-151.0,0.0001131,2]
[419768062,1775368238430,-151.0,0.0001131,2]
[419768064,1775368238440,-151.0,0.0001131,2]
[419768066,1775368238449,-173.7678398,0.0001131,2]
[419768068,1775368238459,-151.0,0.0001131,2]
[419768070,1775368238468,-1000.0,0.00011321,2]
[419768072,1775368238478,-1000.0,0.00011321,2]
[419768074,1775368238487,-1000.0,0.00011321,2]
[419768076,1775368238496,-1000.0,0.00011321,2]
[419768078,1775368238506,-348.90078064,0.00011321,2]
[419768080,1775368238515,-341.5818023,0.00011321,2]
[419768082,1775368238525,-1561.16,0.00011361,2]
[419768084,1775368238534,-308.0,0.0001137,2]
[419768086,1775368238544,-1151.37564886,0.00011373,2]
[419768088,1775368238554,-31633.63329504,0.00011373,2]
[419768090,1775368238563,-2947.22249095,0.00011373,2]
[419768091,1775368238572,-403.31724137,0.00011373,2]
[419768092,1775368238582,-18794.76242307,0.00011373,2]
[419768093,1775368238591,-494.23746172,0.00011373,2]
[419768094,1775368238600,-151.0,0.00011404,2]
[419768095,1775368238610,-151.0,0.00011404,2]
[419768096,1775368238619,-151.0,0.00011404,2]
[419768097,1775368238628,-4090.93595151,0.00011406,2]
[419768098,1775368238638,-316.1305,0.00011473,2]
[419768099,1775368238647,-500.0,0.00011473,2]
[419768100,1775368238656,-500.0,0.00011473,2]
[419768101,1775368238666,-500.0,0.00011473,2]
[419768102,1775368238675,-31633.63329502,0.00011663,2]
[419768103,1775368238684,-784.31070159,0.00011733,2]
[419768104,1775368238694,-362.9,0.00011771,2]
[419768105,1775368238703,-458.76,0.00011836,2]
[419768106,1775368238713,-200.0,0.00011858,2]
[419768107,1775368238722,-1438.09495884,0.00011858,2]
[419768108,1775368238731,-1500.0,0.00011868,2]
[419768109,1775368238741,-1500.0,0.00011868,2]
[419768110,1775368238750,-1500.0,0.00011868,2]
[419768111,1775368238759,-326.8609899,0.00011868,2]
[419768112,1775368238768,-31633.63329502,0.00011953,2]
[419768113,1775368238778,-1000.0,0.00012021,2]
[419768114,1775368238787,-1000.0,0.00012021,2]
[419768115,1775368238796,-1000.0,0.00012021,2]
[419768116,1775368238806,-255.0,0.00012025,2]
[419768117,1775368238815,-43870.20520116,0.00012047,2]
[419768118,1775368238824,-1151.37564885,0.00012128,2]
[419768119,1775368238834,-587.0,0.0001213,2]
[419768120,1775368238843,-2351.0,0.0001213,2]
[419768121,1775368238853,-2000.0,0.00012203,2]
[419768122,1775368239165,-31633.63329502,0.00012243,2]
[419768123,1775368239191,-43870.20520116,0.00012383,2]
[419768124,1775368239200,-203.96604798,0.00012406,2]
[419768125,1775368239210,-1552.39159283,0.00012406,2]
[419768126,1775368239220,-2000.0,0.00012416,2]
[419768127,1775368239229,-2000.0,0.00012416,2]
[419768128,1775368239239,-1068.30323739,0.00012416,2]
[419768129,1775368239249,-458.76,0.00012428,2]
[419768130,1775368239258,-159.665859,0.00012497,2]
[419768131,1775368239268,-31633.63329502,0.00012533,2]
[419768132,1775368239278,-1108.3186174,0.00012568,2]
[419768133,1775368239288,-1500.0,0.00012568,2]
[419768134,1775368239298,-1500.0,0.00012568,2]
[419768135,1775368239308,-1000.0,0.00012656,2]
[419768136,1775368239318,-43870.20520116,0.0001272,2]
[419768137,1775368239328,-11080.25,0.00012787,2]
[419768138,1775368239338,-31633.63329502,0.00012824,2]
[419768139,1775368239347,-1151.37564885,0.00012882,2]
[419768140,1775368239356,-2000.0,0.00012884,2]
[419768141,1775368239366,-2000.0,0.00012884,2]
[419768142,1775368239375,-2000.0,0.00012884,2]
[419768143,1775368239384,-2000.0,0.00012884,2]
[419768144,1775368239393,-2000.0,0.00012884,2]
[419768145,1775368239402,-2000.0,0.00012884,2]
[419768146,1775368239412,-2000.0,0.00012884,2]
[419768147,1775368239422,-2000.0,0.00012884,2]
[419768148,1775368239431,-2000.0,0.00012884,2]
[419768149,1775368239441,-2000.0,0.00012884,2]
[419768150,1775368239451,-2000.0,0.00012884,2]
[419768151,1775368239460,-2000.0,0.00012884,2]
[419768152,1775368239470,-2000.0,0.00012884,2]
[419768153,1775368239479,-2000.0,0.00012884,2]
[419768154,1775368239489,-2000.0,0.00012884,2]
[419768155,1775368239498,-2000.0,0.00012884,2]
[419768156,1775368239507,-823.40816,0.00012893,2]
[419768157,1775368239518,-7800.0,0.000129,4]
[419768158,1775368239527,-2000.0,0.00012932,2]
[419768159,1775368239537,-2000.0,0.00012932,2]
[419768160,1775368239547,-2000.0,0.00012932,2]
[419768161,1775368239556,-2000.0,0.00012932,2]
[419768162,1775368239566,-2000.0,0.00012932,2]
[419768163,1775368239575,-2000.0,0.00012932,2]
[419768164,1775368239585,-2000.0,0.00012932,2]
[419768165,1775368239594,-2000.0,0.00012932,2]
[419768166,1775368239604,-2000.0,0.00012932,2]
[419768167,1775368239613,-2000.0,0.00012932,2]
[419768168,1775368239622,-2000.0,0.00012932,2]
[419768169,1775368239632,-2000.0,0.00012932,2]
[419768170,1775368239642,-2000.0,0.00012932,2]
[419768171,1775368239651,-2000.0,0.00012932,2]
[419768172,1775368239662,-2000.0,0.00012932,2]
[419768173,1775368239672,-2000.0,0.00012932,2]
[419768174,1775368239682,-2000.0,0.00012932,2]
[419768175,1775368239692,-2000.0,0.00012932,2]
[419768176,1775368239702,-2000.0,0.00012932,2]
[419768177,1775368239712,-2000.0,0.00012932,2]
[419768178,1775368239721,-529.219656,0.00012945,2]
[419768179,1775368239731,-2500.0,0.00012964,2]
[419768180,1775368239741,-2502.46157564,0.00012964,2]
[419768181,1775368239751,-250.0,0.00013,2]
[419768182,1775368239760,-458.76,0.0001302,2]
[419768183,1775368239770,-859.078213,0.00013047,2]
[419768184,1775368239779,-43870.20520116,0.00013057,2]
[419768185,1775368239789,-501.0,0.00013111,2]
[419768186,1775368239798,-31633.63329502,0.00013114,2]
[419768187,1775368239808,-2000.0,0.00013116,2]
[419768188,1775368239818,-2000.0,0.00013116,2]
[419768189,1775368239828,-218.027227,0.00013126,2]
[419768190,1775368239837,-8664.084267,0.00013126,2]
[419768191,1775368239847,-2589.983858,0.00013126,2]
[419768192,1775368239856,-631.126437,0.00013136,2]
[419768193,1775368239866,-433.0,0.00013167,2]
[419768194,1775368239875,-250.0,0.00013192,2]
[419768195,1775368239885,-823.0,0.00013342,2]
[419768196,1775368239895,-2782.84805795,0.00013343,2]
[419768197,1775368239921,-320.64904446,0.00013343,2]
[419768198,1775368239940,-188.50289759,0.00013343,2]
[419768199,1775368239950,-213.26210256,0.00013394,2]
[419768200,1775368239972,-866.77770822,0.00013394,2]
[419768204,1775368240311,-9352.3186196,0.00013394,2]
[419768205,1775368240330,-1015.96867818,0.00013394,2]
[419768206,1775368240363,-32421.8780926,0.00013394,2]
[419768207,1775368240373,-31633.63329502,0.00013404,2]
[419768208,1775368240382,-610.193951,0.00013424,2]
[419768209,1775368240392,-558.497651,0.00013424,2]
[419768210,1775368240401,-3240.0,0.00013425,2]
[419768211,1775368240411,-1115.5,0.00013479,2]
[419768212,1775368240420,-1915.04157441,0.00013512,2]
[419768213,1775368240429,-2000.0,0.00013559,2]
[419768214,1775368240439,-458.76,0.00013612,2]
[419768215,1775368240449,-195.73140379,0.00013626,2]
[419768216,1775368240458,-1151.37564885,0.00013637,2]
[419768217,1775368240468,-2947.22249094,0.00013637,2]
[419768218,1775368240478,-403.31724136,0.00013637,2]
[419768219,1775368240487,-18794.76242306,0.00013637,2]
[419768220,1775368240496,-494.23746171,0.00013637,2]
[419768221,1775368240506,-2500.0,0.00013664,2]
[419768222,1775368240519,-2309.28131584,0.00013664,2]
[419768223,1775368240529,-31633.63329502,0.00013694,2]
[419768224,1775368240538,-150.0,0.00013695,2]
[419768225,1775368240548,-156.878,0.00013697,2]
[419768226,1775368240557,-500.0,0.00013698,2]
[419768227,1775368240566,-500.0,0.00013698,2]
[419768228,1775368240575,-500.0,0.00013698,2]
[419768229,1775368240584,-500.0,0.00013698,2]
[419768230,1775368240594,-497.49770464,0.00013698,2]
[419768231,1775368240603,-500.0,0.00013698,2]
[419768232,1775368240613,-500.0,0.00013698,2]
[419768233,1775368240622,-500.0,0.00013698,2]
[419768234,1775368240632,-500.0,0.00013698,2]
[419768235,1775368240641,-500.0,0.00013698,2]
[419768236,1775368240650,-500.0,0.00013698,2]
[419768237,1775368240659,-633.04,0.00013698,2]
[419768238,1775368240669,-500.0,0.00013698,2]
[419768239,1775368240679,-500.0,0.00013698,2]
[419768240,1775368240689,-500.0,0.00013698,2]
[419768241,1775368240699,-500.0,0.00013698,2]
[419768242,1775368240709,-500.0,0.00013698,2]
[419768243,1775368240719,-500.0,0.00013698,2]
[419768244,1775368240728,-500.0,0.00013698,2]
[419768245,1775368240737,-500.0,0.00013698,2]
[419768246,1775368240747,-500.0,0.00013698,2]
[419768247,1775368240756,-500.0,0.00013698,2]
[419768248,1775368240765,-500.0,0.00013698,2]
[419768249,1775368240775,-500.0,0.00013698,2]
[419768250,1775368240784,-500.0,0.00013698,2]
[419768251,1775368240793,-500.0,0.00013698,2]
[419768252,1775368240802,-500.0,0.00013698,2]
[419768253,1775368240812,-500.0,0.00013698,2]
[419768254,1775368240821,-500.0,0.00013698,2]
[419768255,1775368240831,-474.028,0.00013698,2]
[419768256,1775368240840,-1124.72,0.00013698,2]
[419768257,1775368240850,-1124.72,0.00013698,2]
[419768258,1775368240859,-1124.72,0.00013698,2]
[419768259,1775368240868,-1124.72,0.00013698,2]
[419768260,1775368240877,-1124.72,0.00013698,2]
[419768261,1775368240887,-1124.72,0.00013698,2]
[419768262,1775368240896,-1124.72,0.00013698,2]
[419768263,1775368240906,-1124.72,0.00013698,2]
[419768264,1775368240915,-1124.72,0.00013698,2]
[419768265,1775368240926,-1124.72,0.00013698,2]
[419768266,1775368240935,-1124.72,0.00013698,2]
[419768267,1775368240944,-1124.72,0.00013698,2]
[419768268,1775368240954,-899.16,0.00013698,2]
[419768269,1775368240963,-899.16,0.00013698,2]
[419768270,1775368240972,-899.16,0.00013698,2]
[419768271,1775368240981,-899.16,0.00013698,2]
[419768272,1775368240991,-899.16,0.00013698,2]
[419768273,1775368241000,-899.16,0.00013698,2]
[419768274,1775368241010,-899.16,0.00013698,2]
[419768275,1775368241019,-899.16,0.00013698,2]
[419768276,1775368241028,-899.16,0.00013698,2]
[419768277,1775368241038,-899.16,0.00013698,2]
[419768278,1775368241048,-899.16,0.00013698,2]
[419768279,1775368241058,-500.0,0.00013698,2]
[419768280,1775368241067,-500.0,0.00013698,2]
[419768281,1775368241076,-500.0,0.00013698,2]
[419768282,1775368241086,-500.0,0.00013698,2]
[419768283,1775368241095,-520.65331997,0.00013698,2]
[419768284,1775368241105,-500.0,0.00013698,2]
[419768286,1775368241114,-500.0,0.00013698,2]
[419768288,1775368241124,-500.0,0.00013698,2]
[419768290,1775368241134,-500.0,0.00013698,2]
[419768292,1775368241144,-500.0,0.00013698,2]
[419768295,1775368241156,-500.0,0.00013698,2]
[419768297,1775368241166,-500.0,0.00013698,2]
[419768299,1775368241176,-500.0,0.00013698,2]
[419768301,1775368241186,-500.0,0.00013698,2]
[419768302,1775368241195,-500.0,0.00013698,2]
[419768304,1775368241204,-500.0,0.00013698,2]
[419768306,1775368241214,-500.0,0.00013698,2]
[419768308,1775368241223,-500.0,0.00013698,2]
[419768309,1775368241233,-500.0,0.00013698,2]
[419768310,1775368241242,-500.0,0.00013698,2]
[419768311,1775368241252,-500.0,0.00013698,2]
[419768312,1775368241261,-500.0,0.00013698,2]
[419768313,1775368241270,-529.29006668,0.00013698,2]
[419768314,1775368241279,-500.0,0.00013698,2]
[419768315,1775368241289,-500.0,0.00013698,2]
[419768316,1775368241298,-500.0,0.00013698,2]
[419768317,1775368241307,-500.0,0.00013698,2]
[419768318,1775368241318,-500.0,0.00013698,2]
[419768319,1775368241328,-500.0,0.00013698,2]
[419768320,1775368241337,-500.0,0.00013698,2]
[419768322,1775368241348,-500.0,0.00013698,2]
[419768324,1775368241358,-500.0,0.00013698,2]
[419768326,1775368241368,-500.0,0.00013698,2]
[419768328,1775368241379,-500.0,0.00013698,2]
[419768330,1775368241389,-500.0,0.00013698,2]
[419768331,1775368241398,-500.0,0.00013698,2]
[419768332,1775368241407,-500.0,0.00013698,2]
[419768333,1775368241417,-500.0,0.00013698,2]
[419768334,1775368241426,-500.0,0.00013698,2]
[419768335,1775368241436,-500.0,0.00013698,2]
[419768336,1775368241446,-989.7,0.00013698,2]
[419768337,1775368241455,-989.7,0.00013698,2]
[419768338,1775368241465,-989.7,0.00013698,2]
[419768339,1775368241474,-989.7,0.00013698,2]
[419768340,1775368241484,-989.7,0.00013698,2]
[419768341,1775368241494,-989.7,0.00013698,2]
[419768342,1775368241504,-989.7,0.00013698,2]
[419768343,1775368241514,-989.7,0.00013698,2]
[419768344,1775368241523,-989.7,0.00013698,2]
[419768345,1775368241533,-989.7,0.00013698,2]
[419768346,1775368241543,-989.7,0.00013698,2]
[419768347,1775368241552,-500.0,0.00013698,2]
[419768348,1775368241562,-500.0,0.00013698,2]
[419768349,1775368241571,-500.0,0.00013698,2]
[419768350,1775368241581,-500.0,0.00013698,2]
[419768351,1775368241590,-500.0,0.00013698,2]
[419768352,1775368241599,-500.0,0.00013698,2]
[419768353,1775368241608,-500.0,0.00013698,2]
[419768354,1775368241618,-500.0,0.00013698,2]
[419768355,1775368241628,-500.0,0.00013698,2]
[419768356,1775368241638,-500.0,0.00013698,2]
[419768357,1775368241647,-500.0,0.00013698,2]
[419768358,1775368241657,-500.0,0.00013698,2]
[419768359,1775368241666,-500.0,0.00013698,2]
[419768360,1775368241676,-500.0,0.00013698,2]
[419768361,1775368241686,-500.0,0.00013698,2]
[419768362,1775368241695,-500.0,0.00013698,2]
[419768363,1775368241705,-500.0,0.00013698,2]
[419768364,1775368241715,-500.0,0.00013698,2]
[419768365,1775368241725,-500.0,0.00013698,2]
[419768366,1775368241734,-500.0,0.00013698,2]
[419768367,1775368241745,-500.0,0.00013698,2]
[419768368,1775368241754,-500.0,0.00013698,2]
[419768369,1775368241764,-500.0,0.00013698,2]
[419768370,1775368241773,-1183.01,0.00013698,2]
[419768371,1775368241783,-1183.01,0.00013698,2]
[419768372,1775368241793,-1183.01,0.00013698,2]
[419768373,1775368241802,-1183.01,0.00013698,2]
[419768374,1775368241812,-1183.01,0.00013698,2]
[419768375,1775368241821,-1183.01,0.00013698,2]
[419768376,1775368241831,-1183.01,0.00013698,2]
[419768377,1775368241840,-1183.01,0.00013698,2]
[419768378,1775368241850,-500.0,0.00013698,2]
[419768379,1775368241860,-1183.01,0.00013698,2]
[419768380,1775368241870,-500.0,0.00013698,2]
[419768381,1775368241879,-1183.01,0.00013698,2]
[419768382,1775368241888,-500.0,0.00013698,2]
[419768383,1775368241898,-1183.01,0.00013698,2]
[419768384,1775368241907,-500.0,0.00013698,2]
[419768385,1775368241916,-500.0,0.00013698,2]
[419768386,1775368241925,-500.0,0.00013698,2]
[419768387,1775368241935,-500.0,0.00013698,2]
[419768388,1775368241944,-500.0,0.00013698,2]
[419768389,1775368241953,-500.0,0.00013698,2]
[419768390,1775368241963,-500.0,0.00013698,2]
[419768391,1775368241972,-500.0,0.00013698,2]
[419768392,1775368241981,-900.72,0.00013698,2]
[419768393,1775368241991,-900.72,0.00013698,2]
[419768394,1775368242000,-900.72,0.00013698,2]
[419768395,1775368242011,-900.72,0.00013698,2]
[419768396,1775368242021,-900.72,0.00013698,2]
[419768397,1775368242032,-900.72,0.00013698,2]
[419768398,1775368242042,-900.72,0.00013698,2]
[419768399,1775368242052,-900.72,0.00013698,2]
[419768400,1775368242061,-900.72,0.00013698,2]
[419768401,1775368242071,-900.72,0.00013698,2]
[419768402,1775368242080,-900.72,0.00013698,2]
[419768403,1775368242089,-900.72,0.00013698,2]
[419768404,1775368242098,-500.0,0.00013698,2]
[419768405,1775368242107,-500.0,0.00013698,2]
[419768406,1775368242117,-500.0,0.00013698,2]
[419768407,1775368242127,-500.0,0.00013698,2]
[419768408,1775368242136,-500.0,0.00013698,2]
[419768409,1775368242145,-500.0,0.00013698,2]
[419768410,1775368242155,-500.0,0.00013698,2]
[419768411,1775368242164,-500.0,0.00013698,2]
[419768412,1775368242175,-500.0,0.00013698,2]
[419768413,1775368242185,-500.0,0.00013698,2]
[419768414,1775368242194,-500.0,0.00013698,2]
[419768415,1775368242203,-500.0,0.00013698,2]
[419768416,1775368242212,-551.83212521,0.00013698,2]
[419768417,1775368242221,-889.96,0.00013698,2]
[419768418,1775368242231,-889.96,0.00013698,2]